[Event "Early-Titled-Tuesday-Blitz-January-16-2024"]
[Site "Chess.com"]
[Date "2024.01.16"]
[Round "1"]
[White "KarolKacprzak"]
[Black "Arimin1329"]
[Result "1-0"]
[WhiteElo "2738"]
[BlackElo "2399"]
[TimeControl "180+1"]
[EndTime "8:06:21 PST"]
[Termination "KarolKacprzak won by resignation"]

1. d4 {[%clk 0:03:00.9]} 1... Nf6 {[%clk 0:02:58.6]} 2. c4 {[%clk 0:03:00.4]}
2... b6 {[%clk 0:02:58.2]} 3. Nc3 {[%clk 0:03:00.2]} 3... Bb7 {[%clk 0:02:58.1]}
4. Nf3 {[%clk 0:02:58.9]} 4... e6 {[%clk 0:02:55.4]} 5. Qc2 {[%clk 0:02:50.1]}
5... Bb4 {[%clk 0:02:53.9]} 6. e3 {[%clk 0:02:47.2]} 6... Bxc3+ {[%clk
0:02:48.8]} 7. Qxc3 {[%clk 0:02:44.1]} 7... Ne4 {[%clk 0:02:48.3]} 8. Qc2 {[%clk
0:02:44.3]} 8... O-O {[%clk 0:02:48.6]} 9. Be2 {[%clk 0:02:40.5]} 9... f5 {[%clk
0:02:47.9]} 10. b3 {[%clk 0:02:40.6]} 10... d6 {[%clk 0:02:47.8]} 11. Bb2 {[%clk
0:02:37.6]} 11... Nd7 {[%clk 0:02:48.2]} 12. Bd3 {[%clk 0:02:26.6]} 12... Qe7
{[%clk 0:02:46.2]} 13. O-O-O {[%clk 0:02:26.6]} 13... a5 {[%clk 0:02:44.8]} 14.
d5 {[%clk 0:02:19.5]} 14... exd5 {[%clk 0:02:35.2]} 15. cxd5 {[%clk 0:02:20.4]}
15... Bxd5 {[%clk 0:02:33.3]} 16. Kb1 {[%clk 0:02:09.6]} 16... Ndc5 {[%clk
0:02:25.2]} 17. Bb5 {[%clk 0:02:03.9]} 17... Bb7 {[%clk 0:02:02]} 18. Nd4 {[%clk
0:02:02.4]} 18... Ng5 {[%clk 0:01:39.3]} 19. f3 {[%clk 0:01:59.4]} 19... Qxe3
{[%clk 0:01:26.8]} 20. Nxf5 {[%clk 0:01:54.4]} 20... Qf4 {[%clk 0:01:21.4]} 21.
Bc4+ {[%clk 0:01:44.5]} 21... Nge6 {[%clk 0:01:14.9]} 22. Nxg7 {[%clk 0:01:37]}
22... Rae8 {[%clk 0:00:55]} 23. Nxe8 {[%clk 0:01:36.4]} 23... Rxe8 {[%clk
0:00:55.9]} 24. Qc3 {[%clk 0:01:31.5]} 24... Qf5+ {[%clk 0:00:49.2]} 25. Ka1
{[%clk 0:01:31.3]} 25... Qg6 {[%clk 0:00:47.8]} 26. Rhe1 {[%clk 0:01:27.5]}
26... b5 {[%clk 0:00:33.7]} 27. Bxb5 {[%clk 0:01:26.2]} 27... Ra8 {[%clk
0:00:29.9]} 28. Bc4 {[%clk 0:01:21.4]} 28... a4 {[%clk 0:00:29.9]} 29. b4 {[%clk
0:01:17.9]} 29... a3 {[%clk 0:00:30]} 30. bxc5 {[%clk 0:01:14.5]} 30... axb2+
{[%clk 0:00:27]} 31. Qxb2 {[%clk 0:01:15.4]} 31... Bc8 {[%clk 0:00:20.5]} 32.
cxd6 {[%clk 0:01:03.3]} 32... cxd6 {[%clk 0:00:20.2]} 33. Rxd6 {[%clk
0:01:02.9]} 33... Kf7 {[%clk 0:00:12.6]} 34. Bxe6+ {[%clk 0:01:01.9]} 34... Bxe6
{[%clk 0:00:13]} 35. Rdxe6 {[%clk 0:01:02.6]} 1-0

[Event "Early-Titled-Tuesday-Blitz-January-16-2024"]
[Site "Chess.com"]
[Date "2024.01.16"]
[Round "1"]
[White "Malev212"]
[Black "Chessdude1987"]
[Result "1-0"]
[WhiteElo "2640"]
[BlackElo "2297"]
[TimeControl "180+1"]
[EndTime "8:06:22 PST"]
[Termination "Malev212 won by checkmate"]

1. e4 {[%clk 0:02:59.2]} 1... e6 {[%clk 0:03:00]} 2. d4 {[%clk 0:02:57.3]} 2...
d5 {[%clk 0:02:58.9]} 3. Nc3 {[%clk 0:02:56.6]} 3... Nf6 {[%clk 0:02:57.7]} 4.
Bg5 {[%clk 0:02:55.4]} 4... h6 {[%clk 0:02:56.4]} 5. Bxf6 {[%clk 0:02:45.9]}
5... Qxf6 {[%clk 0:02:57.3]} 6. a3 {[%clk 0:02:44.4]} 6... Qd8 {[%clk
0:02:50.9]} 7. Nf3 {[%clk 0:02:40.4]} 7... Be7 {[%clk 0:02:50.6]} 8. h4 {[%clk
0:02:36.9]} 8... c6 {[%clk 0:02:32.7]} 9. g4 {[%clk 0:02:28.6]} 9... Nd7 {[%clk
0:02:31.8]} 10. Qe2 {[%clk 0:02:16.8]} 10... dxe4 {[%clk 0:02:21.3]} 11. Nxe4
{[%clk 0:02:12.4]} 11... Nf6 {[%clk 0:02:20.3]} 12. Nxf6+ {[%clk 0:02:11.4]}
12... Bxf6 {[%clk 0:02:20.3]} 13. O-O-O {[%clk 0:02:10.8]} 13... Qc7 {[%clk
0:02:14.2]} 14. Bg2 {[%clk 0:02:08.3]} 14... Qf4+ {[%clk 0:02:05.3]} 15. Kb1
{[%clk 0:02:04.9]} 15... Qxg4 {[%clk 0:02:04.9]} 16. Rhg1 {[%clk 0:01:57.8]}
16... Bd7 {[%clk 0:01:56.1]} 17. Qe3 {[%clk 0:01:50.2]} 17... Qh5 {[%clk
0:01:49.2]} 18. Ne5 {[%clk 0:01:39.8]} 18... O-O-O {[%clk 0:01:06.1]} 19. Bf3
{[%clk 0:01:35.7]} 19... Qxh4 {[%clk 0:01:06.1]} 20. Nxf7 {[%clk 0:01:34.1]}
20... Bg5 {[%clk 0:01:01]} 21. Rxg5 {[%clk 0:01:16.1]} 21... hxg5 {[%clk
0:00:56.3]} 22. Rh1 {[%clk 0:01:15.4]} 22... Qxh1+ {[%clk 0:00:55.1]} 23. Bxh1
{[%clk 0:01:15.3]} 23... Rxh1+ {[%clk 0:00:54.3]} 24. Ka2 {[%clk 0:01:15.2]}
24... Rf8 {[%clk 0:00:49.5]} 25. Nd6+ {[%clk 0:01:09.3]} 25... Kb8 {[%clk
0:00:42.1]} 26. Qe5 {[%clk 0:01:03]} 26... Ka8 {[%clk 0:00:40.2]} 27. Qxg7
{[%clk 0:01:02.5]} 27... Rd8 {[%clk 0:00:40]} 28. Qe7 {[%clk 0:00:55.6]} 28...
Rhh8 {[%clk 0:00:37.6]} 29. Nf7 {[%clk 0:00:55.4]} 29... Rhe8 {[%clk 0:00:35.8]}
30. Qd6 {[%clk 0:00:51.5]} 30... Rc8 {[%clk 0:00:16.8]} 31. Qxd7 {[%clk
0:00:49.5]} 31... g4 {[%clk 0:00:16.1]} 32. Nd6 {[%clk 0:00:48.7]} 32... Rcd8
{[%clk 0:00:16.4]} 33. Qxb7# {[%clk 0:00:48]} 1-0

[Event "Early-Titled-Tuesday-Blitz-January-16-2024"]
[Site "Chess.com"]
[Date "2024.01.16"]
[Round "1"]
[White "IM_ArthurDW08"]
[Black "BJthechessgod"]
[Result "1-0"]
[WhiteElo "2788"]
[BlackElo "2423"]
[TimeControl "180+1"]
[EndTime "8:06:23 PST"]
[Termination "IM_ArthurDW08 won on time"]

1. e4 {[%clk 0:03:00.3]} 1... c5 {[%clk 0:02:56.9]} 2. Nf3 {[%clk 0:02:59.3]}
2... e6 {[%clk 0:02:56.7]} 3. b3 {[%clk 0:02:54.5]} 3... Nc6 {[%clk 0:02:56.1]}
4. Bb2 {[%clk 0:02:53.4]} 4... Nf6 {[%clk 0:02:52.5]} 5. Nc3 {[%clk 0:02:50.1]}
5... d6 {[%clk 0:02:48.3]} 6. d4 {[%clk 0:02:49.2]} 6... cxd4 {[%clk 0:02:48.6]}
7. Nxd4 {[%clk 0:02:50.1]} 7... Bd7 {[%clk 0:02:46.8]} 8. Qd2 {[%clk 0:02:47]}
8... a6 {[%clk 0:02:46]} 9. O-O-O {[%clk 0:02:45.8]} 9... Be7 {[%clk 0:02:45.7]}
10. Kb1 {[%clk 0:02:45.9]} 10... Qc7 {[%clk 0:02:45.3]} 11. f3 {[%clk
0:02:40.5]} 11... b5 {[%clk 0:02:45.3]} 12. Nxc6 {[%clk 0:02:39.3]} 12... Bxc6
{[%clk 0:02:44.7]} 13. Ne2 {[%clk 0:02:40.2]} 13... O-O {[%clk 0:02:42]} 14. Nd4
{[%clk 0:02:39.2]} 14... Bd7 {[%clk 0:02:42.3]} 15. g4 {[%clk 0:02:38.1]} 15...
Rac8 {[%clk 0:02:40.8]} 16. h4 {[%clk 0:02:30.5]} 16... d5 {[%clk 0:02:02.8]}
17. e5 {[%clk 0:02:22.6]} 17... Ne8 {[%clk 0:01:53.1]} 18. h5 {[%clk 0:02:13.2]}
18... h6 {[%clk 0:01:13.2]} 19. f4 {[%clk 0:02:13]} 19... f6 {[%clk 0:01:05.5]}
20. Bd3 {[%clk 0:01:48.4]} 20... fxe5 {[%clk 0:00:56.8]} 21. fxe5 {[%clk
0:01:49.3]} 21... Bg5 {[%clk 0:00:57.3]} 22. Qe2 {[%clk 0:01:45.6]} 22... Bf4
{[%clk 0:00:42.7]} 23. Nf3 {[%clk 0:01:37.4]} 23... Qd8 {[%clk 0:00:36.6]} 24.
Rdg1 {[%clk 0:01:33]} 24... Nc7 {[%clk 0:00:26]} 25. g5 {[%clk 0:01:26.9]} 25...
hxg5 {[%clk 0:00:19.8]} 26. h6 {[%clk 0:01:25.2]} 26... g6 {[%clk 0:00:15.3]}
27. Bxg6 {[%clk 0:01:10.1]} 27... b4 {[%clk 0:00:14.9]} 28. Nxg5 {[%clk
0:01:07.6]} 28... Bxg5 {[%clk 0:00:09.6]} 29. Qh5 {[%clk 0:01:06.3]} 29... Kh8
{[%clk 0:00:05.4]} 30. Rxg5 {[%clk 0:01:02.8]} 30... Nb5 {[%clk 0:00:03.5]} 31.
Bd3 {[%clk 0:01:03.4]} 31... Nc3+ {[%clk 0:00:03.1]} 32. Bxc3 {[%clk 0:01:03.9]}
32... bxc3 {[%clk 0:00:03.6]} 33. Rg7 {[%clk 0:01:04.5]} 33... Rf5 {[%clk
0:00:01.2]} 34. Qg6 {[%clk 0:01:03.3]} 1-0

[Event "Early-Titled-Tuesday-Blitz-January-16-2024"]
[Site "Chess.com"]
[Date "2024.01.16"]
[Round "1"]
[White "tteshan"]
[Black "LuisFSiles"]
[Result "1-0"]
[WhiteElo "2603"]
[BlackElo "2236"]
[TimeControl "180+1"]
[EndTime "8:06:24 PST"]
[Termination "tteshan won by resignation"]

1. e4 {[%clk 0:03:00.9]} 1... c5 {[%clk 0:02:56.3]} 2. c3 {[%clk 0:03:00.8]}
2... d5 {[%clk 0:02:55.3]} 3. exd5 {[%clk 0:02:59.1]} 3... Nf6 {[%clk
0:02:55.6]} 4. Qa4+ {[%clk 0:02:58.2]} 4... Bd7 {[%clk 0:02:52.3]} 5. Qb3 {[%clk
0:02:58.3]} 5... Qb6 {[%clk 0:02:51.7]} 6. Qxb6 {[%clk 0:02:55.3]} 6... axb6
{[%clk 0:02:51.1]} 7. c4 {[%clk 0:02:55.9]} 7... g6 {[%clk 0:02:46.4]} 8. Nf3
{[%clk 0:02:55]} 8... Bg7 {[%clk 0:02:46.6]} 9. Nc3 {[%clk 0:02:53.9]} 9... O-O
{[%clk 0:02:46.4]} 10. d3 {[%clk 0:02:52.9]} 10... Na6 {[%clk 0:02:36.5]} 11.
Be2 {[%clk 0:02:48.5]} 11... b5 {[%clk 0:02:23.3]} 12. O-O {[%clk 0:02:46.1]}
12... Nc7 {[%clk 0:02:16.4]} 13. Be3 {[%clk 0:02:40.6]} 13... b6 {[%clk
0:02:14]} 14. Ne5 {[%clk 0:02:24.6]} 14... Be8 {[%clk 0:02:10.2]} 15. Bf4 {[%clk
0:02:18.6]} 15... b4 {[%clk 0:02:00.5]} 16. Ne4 {[%clk 0:02:18]} 16... h5 {[%clk
0:01:51.1]} 17. h4 {[%clk 0:02:16.2]} 17... Nxe4 {[%clk 0:01:38.2]} 18. dxe4
{[%clk 0:02:17.1]} 18... b5 {[%clk 0:01:38.5]} 19. cxb5 {[%clk 0:02:04.4]} 19...
Nxb5 {[%clk 0:01:36.7]} 20. Nc4 {[%clk 0:02:00.5]} 20... Nd4 {[%clk 0:01:35.3]}
21. Bd3 {[%clk 0:01:59.5]} 21... Bb5 {[%clk 0:01:26.8]} 22. Bg5 {[%clk
0:01:51.3]} 22... Ra7 {[%clk 0:01:22.4]} 23. a3 {[%clk 0:01:36.2]} 23... Nb3
{[%clk 0:01:18.7]} 24. Rab1 {[%clk 0:01:35.3]} 24... Bxc4 {[%clk 0:01:18.3]} 25.
Bxc4 {[%clk 0:01:34.4]} 25... Na5 {[%clk 0:01:15.2]} 26. Be2 {[%clk 0:01:31.2]}
26... Rb8 {[%clk 0:01:11.2]} 27. Be3 {[%clk 0:01:26.5]} 27... Rc7 {[%clk
0:01:01.5]} 28. Bf4 {[%clk 0:01:21.1]} 28... Rcb7 {[%clk 0:00:51.3]} 29. Bxb8
{[%clk 0:01:20.6]} 29... Rxb8 {[%clk 0:00:52.2]} 30. Rfc1 {[%clk 0:01:11.8]}
30... Bd4 {[%clk 0:00:51.6]} 31. a4 {[%clk 0:01:00.6]} 31... Nb3 {[%clk
0:00:47.2]} 32. Rd1 {[%clk 0:01:00.1]} 32... Bf6 {[%clk 0:00:44]} 33. g3 {[%clk
0:00:56.1]} 33... Nd4 {[%clk 0:00:43.6]} 34. Bf1 {[%clk 0:00:52.3]} 34... Ra8
{[%clk 0:00:40.3]} 35. b3 {[%clk 0:00:52.5]} 35... Kf8 {[%clk 0:00:30.9]} 36.
Bc4 {[%clk 0:00:52.8]} 36... Ne2+ {[%clk 0:00:24.9]} 37. Bxe2 {[%clk 0:00:52]}
1-0

[Event "Early-Titled-Tuesday-Blitz-January-16-2024"]
[Site "Chess.com"]
[Date "2024.01.16"]
[Round "1"]
[White "Hikaru"]
[Black "Nf3c5"]
[Result "1-0"]
[WhiteElo "3222"]
[BlackElo "2547"]
[TimeControl "180+1"]
[EndTime "8:06:25 PST"]
[Termination "Hikaru won by resignation"]

1. Nf3 {[%clk 0:03:00.9]} 1... c5 {[%clk 0:02:56.6]} 2. b3 {[%clk 0:03:00.6]}
2... Nc6 {[%clk 0:02:51.1]} 3. Bb2 {[%clk 0:03:00.1]} 3... d6 {[%clk 0:02:51.2]}
4. d4 {[%clk 0:02:59.6]} 4... cxd4 {[%clk 0:02:46.4]} 5. Nxd4 {[%clk 0:02:59.9]}
5... Nf6 {[%clk 0:02:44.6]} 6. Nxc6 {[%clk 0:02:59.4]} 6... bxc6 {[%clk
0:02:44.2]} 7. g3 {[%clk 0:03:00.1]} 7... Bb7 {[%clk 0:02:37.4]} 8. Bg2 {[%clk
0:02:59.2]} 8... Qc7 {[%clk 0:02:37.9]} 9. e4 {[%clk 0:02:54]} 9... e5 {[%clk
0:02:15.4]} 10. O-O {[%clk 0:02:53.3]} 10... Be7 {[%clk 0:02:14.8]} 11. c4
{[%clk 0:02:53.6]} 11... O-O {[%clk 0:02:13.8]} 12. Nc3 {[%clk 0:02:53.5]} 12...
Nd7 {[%clk 0:02:12.9]} 13. b4 {[%clk 0:02:50.4]} 13... Nb6 {[%clk 0:02:03]} 14.
Qb3 {[%clk 0:02:39.5]} 14... a5 {[%clk 0:01:52.8]} 15. a3 {[%clk 0:02:38.2]}
15... a4 {[%clk 0:01:47.7]} 16. Qa2 {[%clk 0:02:37.3]} 16... Ba6 {[%clk
0:01:48.6]} 17. b5 {[%clk 0:02:35.6]} 17... cxb5 {[%clk 0:01:48.9]} 18. cxb5
{[%clk 0:02:36.5]} 18... Bb7 {[%clk 0:01:48.9]} 19. Rac1 {[%clk 0:02:35.3]}
19... Qc4 {[%clk 0:01:44.8]} 20. Qa1 {[%clk 0:02:30]} 20... Qb3 {[%clk
0:01:28.8]} 21. Rb1 {[%clk 0:02:29.5]} 21... Rac8 {[%clk 0:01:11.6]} 22. Rfc1
{[%clk 0:02:00.6]} 22... Bg5 {[%clk 0:01:03.2]} 23. Rd1 {[%clk 0:01:56.9]} 23...
Be7 {[%clk 0:01:00.1]} 24. Rd3 {[%clk 0:01:52.6]} 24... Nc4 {[%clk 0:00:47]} 25.
Bf1 {[%clk 0:01:50.8]} 25... Nxb2 {[%clk 0:00:42.8]} 26. Nd5 {[%clk 0:01:22.5]}
26... Bxd5 {[%clk 0:00:31]} 27. Rxb3 {[%clk 0:01:16.6]} 27... Bxb3 {[%clk
0:00:31.9]} 28. Rxb2 {[%clk 0:01:14.6]} 28... Bd8 {[%clk 0:00:31.6]} 29. Be2
{[%clk 0:01:07.7]} 29... Bb6 {[%clk 0:00:30.6]} 30. Bd1 {[%clk 0:01:08.3]} 30...
Bd4 {[%clk 0:00:30.3]} 31. Bxb3 {[%clk 0:01:08.8]} 31... axb3 {[%clk 0:00:30.7]}
32. Qb1 {[%clk 0:01:09.5]} 32... Rc5 {[%clk 0:00:22.1]} 33. Rxb3 {[%clk
0:01:07.2]} 33... Rfc8 {[%clk 0:00:22.7]} 34. Kg2 {[%clk 0:01:07.4]} 34... Rc2
{[%clk 0:00:22.7]} 35. Rf3 {[%clk 0:01:07.2]} 35... Rd2 {[%clk 0:00:13.6]} 36.
Qb3 {[%clk 0:01:03.9]} 36... Rcc2 {[%clk 0:00:11.3]} 37. Qxf7+ {[%clk
0:01:03.3]} 1-0

[Event "Early-Titled-Tuesday-Blitz-January-16-2024"]
[Site "Chess.com"]
[Date "2024.01.16"]
[Round "1"]
[White "stollenmonster"]
[Black "chess_blitz00"]
[Result "1-0"]
[WhiteElo "2907"]
[BlackElo "2489"]
[TimeControl "180+1"]
[EndTime "8:06:26 PST"]
[Termination "stollenmonster won by checkmate"]

1. e4 {[%clk 0:03:00.9]} 1... d6 {[%clk 0:02:59.9]} 2. g3 {[%clk 0:03:00.8]}
2... g6 {[%clk 0:02:59.5]} 3. Bg2 {[%clk 0:03:01.3]} 3... Bg7 {[%clk 0:02:59.9]}
4. Ne2 {[%clk 0:03:01.9]} 4... c5 {[%clk 0:02:59.8]} 5. d4 {[%clk 0:03:02]} 5...
Nc6 {[%clk 0:02:57.8]} 6. c3 {[%clk 0:02:57.1]} 6... cxd4 {[%clk 0:02:55.2]} 7.
cxd4 {[%clk 0:02:58]} 7... e5 {[%clk 0:02:52.3]} 8. d5 {[%clk 0:02:54.6]} 8...
Nce7 {[%clk 0:02:51.9]} 9. O-O {[%clk 0:02:54.1]} 9... f5 {[%clk 0:02:51.2]} 10.
Nbc3 {[%clk 0:02:54]} 10... Nf6 {[%clk 0:02:50.8]} 11. f4 {[%clk 0:02:52.8]}
11... exf4 {[%clk 0:02:27.8]} 12. Nxf4 {[%clk 0:02:52.2]} 12... O-O {[%clk
0:02:26.6]} 13. exf5 {[%clk 0:02:41.2]} 13... Nxf5 {[%clk 0:02:23.1]} 14. Ne6
{[%clk 0:02:40.3]} 14... Bxe6 {[%clk 0:02:22.5]} 15. dxe6 {[%clk 0:02:41.2]}
15... Re8 {[%clk 0:02:08.5]} 16. Bg5 {[%clk 0:02:10.4]} 16... h6 {[%clk
0:01:58.6]} 17. Bf4 {[%clk 0:01:59.8]} 17... Nh5 {[%clk 0:01:43.6]} 18. Nd5
{[%clk 0:01:37.4]} 18... Rxe6 {[%clk 0:01:25]} 19. Rc1 {[%clk 0:01:24.3]} 19...
Rc8 {[%clk 0:00:55.1]} 20. Qd2 {[%clk 0:01:13.5]} 20... Kh7 {[%clk 0:00:41.3]}
21. Rxc8 {[%clk 0:00:57.7]} 21... Qxc8 {[%clk 0:00:40.9]} 22. g4 {[%clk
0:00:58.5]} 22... Nxf4 {[%clk 0:00:17.8]} 23. Nxf4 {[%clk 0:00:58.9]} 23... Bd4+
{[%clk 0:00:11.4]} 24. Kh1 {[%clk 0:00:57.8]} 24... Be3 {[%clk 0:00:07.5]} 25.
Qd3 {[%clk 0:00:57.7]} 25... Bxf4 {[%clk 0:00:07]} 26. gxf5 {[%clk 0:00:58.1]}
26... Re3 {[%clk 0:00:05.2]} 27. fxg6+ {[%clk 0:00:58.8]} 27... Kg7 {[%clk
0:00:04.3]} 28. Qd4+ {[%clk 0:00:58.7]} 28... Re5 {[%clk 0:00:03.1]} 29. Qxf4
{[%clk 0:00:58.9]} 29... Qd7 {[%clk 0:00:03]} 30. Qf6+ {[%clk 0:00:58.1]} 30...
Kg8 {[%clk 0:00:03]} 31. Qf8# {[%clk 0:00:58]} 1-0

[Event "Early-Titled-Tuesday-Blitz-January-16-2024"]
[Site "Chess.com"]
[Date "2024.01.16"]
[Round "1"]
[White "queen_iryna"]
[Black "NovozhilovSemen"]
[Result "0-1"]
[WhiteElo "2355"]
[BlackElo "2678"]
[TimeControl "180+1"]
[EndTime "8:06:27 PST"]
[Termination "NovozhilovSemen won by resignation"]

1. e4 {[%clk 0:03:00.9]} 1... c5 {[%clk 0:02:59.6]} 2. Nf3 {[%clk 0:03:00.5]}
2... Nc6 {[%clk 0:02:59.2]} 3. Bb5 {[%clk 0:03:00]} 3... g6 {[%clk 0:02:59.1]}
4. Bxc6 {[%clk 0:02:59.5]} 4... bxc6 {[%clk 0:02:58.2]} 5. O-O {[%clk
0:02:58.9]} 5... Bg7 {[%clk 0:02:58.2]} 6. c3 {[%clk 0:02:58.9]} 6... Nf6 {[%clk
0:02:58.3]} 7. Re1 {[%clk 0:02:59]} 7... O-O {[%clk 0:02:58.6]} 8. d4 {[%clk
0:02:59.1]} 8... d5 {[%clk 0:02:52.3]} 9. e5 {[%clk 0:02:54.9]} 9... Ne4 {[%clk
0:02:52.2]} 10. Nbd2 {[%clk 0:02:49]} 10... Bf5 {[%clk 0:02:47.8]} 11. Nf1
{[%clk 0:02:41.4]} 11... Qb6 {[%clk 0:02:45.4]} 12. Ng3 {[%clk 0:02:33.7]} 12...
Nxg3 {[%clk 0:02:38.8]} 13. hxg3 {[%clk 0:02:34.6]} 13... c4 {[%clk 0:02:39.1]}
14. b4 {[%clk 0:02:10.4]} 14... a5 {[%clk 0:02:31.7]} 15. Ba3 {[%clk 0:02:08.2]}
15... Ra7 {[%clk 0:02:28.5]} 16. bxa5 {[%clk 0:02:02.5]} 16... Qxa5 {[%clk
0:02:29.4]} 17. Bb4 {[%clk 0:02:02.6]} 17... Qc7 {[%clk 0:02:18.1]} 18. a4
{[%clk 0:01:58.5]} 18... Rfa8 {[%clk 0:02:17.9]} 19. a5 {[%clk 0:01:57.7]} 19...
Bf8 {[%clk 0:02:17.7]} 20. Re2 {[%clk 0:01:19.2]} 20... Rb7 {[%clk 0:02:09.3]}
21. Rea2 {[%clk 0:01:08.7]} 21... Ra6 {[%clk 0:02:07]} 22. Qa4 {[%clk
0:00:41.6]} 22... Rb5 {[%clk 0:02:04]} 23. Qa3 {[%clk 0:00:33]} 23... Qb7 {[%clk
0:01:51.2]} 24. Bc5 {[%clk 0:00:28.8]} 24... Qc7 {[%clk 0:01:44.8]} 25. Bb4
{[%clk 0:00:27.7]} 25... Rb8 {[%clk 0:01:43]} 26. Bc5 {[%clk 0:00:27.1]} 26...
e6 {[%clk 0:01:41.8]} 27. Bb6 {[%clk 0:00:25]} 27... Qxb6 {[%clk 0:01:26.5]} 28.
axb6 {[%clk 0:00:25.9]} 28... Bxa3 {[%clk 0:01:24.9]} 29. Rxa3 {[%clk 0:00:25]}
29... Rxa3 {[%clk 0:01:25.8]} 30. Rxa3 {[%clk 0:00:25.4]} 30... Rxb6 {[%clk
0:01:26.5]} 31. Ra1 {[%clk 0:00:19.5]} 31... h6 {[%clk 0:01:23]} 32. Kf1 {[%clk
0:00:18.8]} 32... Bd3+ {[%clk 0:01:21.7]} 33. Ke1 {[%clk 0:00:19]} 33... Rb2
{[%clk 0:01:22.3]} 34. Rc1 {[%clk 0:00:18.1]} 34... Re2+ {[%clk 0:01:21.7]} 35.
Kd1 {[%clk 0:00:16.3]} 35... Rxf2 {[%clk 0:01:22.1]} 36. Ne1 {[%clk 0:00:16.6]}
36... Be4 {[%clk 0:01:18.3]} 37. Ra1 {[%clk 0:00:14.8]} 37... h5 {[%clk
0:01:17.5]} 38. Ra6 {[%clk 0:00:13.5]} 38... Bxg2 {[%clk 0:01:14.9]} 39. Rxc6
{[%clk 0:00:13.2]} 39... Be4 {[%clk 0:01:14.5]} 40. Rc8+ {[%clk 0:00:12.8]}
40... Kg7 {[%clk 0:01:14.7]} 41. Rc7 {[%clk 0:00:13]} 41... g5 {[%clk
0:01:14.8]} 0-1

[Event "Early-Titled-Tuesday-Blitz-January-16-2024"]
[Site "Chess.com"]
[Date "2024.01.16"]
[Round "1"]
[White "barbara25"]
[Black "Caterpiller35"]
[Result "0-1"]
[WhiteElo "2285"]
[BlackElo "2625"]
[TimeControl "180+1"]
[EndTime "8:06:29 PST"]
[Termination "Caterpiller35 won by resignation"]

1. e4 {[%clk 0:02:49.2]} 1... c5 {[%clk 0:02:59.3]} 2. Nf3 {[%clk 0:02:45.4]}
2... Nc6 {[%clk 0:02:58.9]} 3. Nc3 {[%clk 0:02:37.4]} 3... g6 {[%clk 0:02:57.9]}
4. d4 {[%clk 0:02:35.9]} 4... cxd4 {[%clk 0:02:58.8]} 5. Nxd4 {[%clk 0:02:34.9]}
5... Bg7 {[%clk 0:02:59.7]} 6. Be3 {[%clk 0:02:33.1]} 6... Nf6 {[%clk 0:02:59]}
7. Bc4 {[%clk 0:02:32.2]} 7... O-O {[%clk 0:02:58.1]} 8. Bb3 {[%clk 0:02:30.7]}
8... Qa5 {[%clk 0:02:56.8]} 9. O-O {[%clk 0:02:27.8]} 9... d6 {[%clk 0:02:55.5]}
10. Qd2 {[%clk 0:02:26]} 10... Ng4 {[%clk 0:02:54.3]} 11. Nxc6 {[%clk
0:02:23.8]} 11... bxc6 {[%clk 0:02:53.1]} 12. Bd4 {[%clk 0:02:23.3]} 12... e5
{[%clk 0:02:50.9]} 13. Be3 {[%clk 0:02:21.3]} 13... Nxe3 {[%clk 0:02:50.6]} 14.
Qxe3 {[%clk 0:02:19.5]} 14... Qb6 {[%clk 0:02:42.9]} 15. Qd3 {[%clk 0:02:14.6]}
15... Ba6 {[%clk 0:02:38.8]} 16. Qxd6 {[%clk 0:02:12.4]} 16... Bxf1 {[%clk
0:02:37.6]} 17. Rxf1 {[%clk 0:02:13.3]} 17... Rad8 {[%clk 0:02:24.4]} 18. Qe7
{[%clk 0:02:08.3]} 18... a5 {[%clk 0:02:12.9]} 19. a4 {[%clk 0:02:03.6]} 19...
Qd4 {[%clk 0:02:04.3]} 20. h3 {[%clk 0:02:00]} 20... Kh8 {[%clk 0:02:02]} 21.
Qb7 {[%clk 0:01:54.2]} 21... f5 {[%clk 0:01:53]} 22. Qxc6 {[%clk 0:01:47]} 22...
f4 {[%clk 0:01:45.7]} 23. Qc4 {[%clk 0:01:42.8]} 23... Qa7 {[%clk 0:01:41.1]}
24. Nd5 {[%clk 0:01:35]} 24... f3 {[%clk 0:01:38]} 25. g3 {[%clk 0:01:32.5]}
25... Qd7 {[%clk 0:01:33.9]} 26. Qb5 {[%clk 0:01:30.4]} 26... Qxh3 {[%clk
0:01:31.6]} 27. Ne3 {[%clk 0:01:26.5]} 27... Rb8 {[%clk 0:01:23.2]} 28. Qc5
{[%clk 0:01:21.2]} 28... Rbc8 {[%clk 0:01:21.7]} 29. Qd5 {[%clk 0:01:19.9]}
29... Rcd8 {[%clk 0:01:19.7]} 30. Qxa5 {[%clk 0:01:18.9]} 30... h5 {[%clk
0:01:07.5]} 31. Bc4 {[%clk 0:00:56.2]} 31... h4 {[%clk 0:01:06]} 32. Qb6 {[%clk
0:00:27.2]} 32... hxg3 {[%clk 0:01:01.3]} 33. fxg3 {[%clk 0:00:25.3]} 33...
Qxg3+ {[%clk 0:01:00.9]} 34. Kh1 {[%clk 0:00:25.7]} 34... Rd2 {[%clk 0:00:59.8]}
0-1